fUSD/lending_fUSD_20260505
["ID","MTS","AMOUNT","RATE_DAILY","PERIOD"]
[421615303,1777966238000,-500.0,0.00039618,15]
[421615301,1777966238000,-500.0,0.00039618,15]
[421615304,1777966238000,-500.0,0.00039618,15]
[421615305,1777966238000,-500.0,0.00039618,15]
[421615309,1777966238000,-349.41207623,0.00039618,15]
[421615311,1777966238000,-200.0,0.00039619,30]
[421615306,1777966238000,-500.0,0.00039618,15]
[421615310,1777966238000,-500.0,0.00039618,15]
[421615255,1777966238000,-150.0,0.00039327,7]
[421615290,1777966238000,-219.199999,0.000396,31]
[421615291,1777966238000,-185.68482215,0.00039609,2]
[421615308,1777966238000,-228.9319309,0.00039618,15]
[421615283,1777966238000,-185.06959613,0.00039549,2]
[421615288,1777966238000,-219.199999,0.000396,31]
[421615273,1777966238000,-3185.420242,0.00039503,2]
[421615263,1777966238000,-800.0,0.00039454,13]
[421615264,1777966238000,-800.0,0.00039454,13]
[421615271,1777966238000,-355.2215463,0.00039503,2]
[421615267,1777966238000,-648.5403472,0.00039472,2]
[421615272,1777966238000,-3125.2084533,0.00039503,2]
[421615268,1777966238000,-1021.5,0.00039502,55]
[421615265,1777966238000,-810.0,0.00039454,13]
[421615266,1777966238000,-150.0,0.00039456,7]
[421615275,1777966238000,-1869.5205007,0.00039503,2]
[421615269,1777966238000,-163.06,0.00039502,55]
[421615274,1777966238000,-2786.0454074,0.00039503,2]
[421615279,1777966238000,-5000.0,0.00039519,2]
[421615270,1777966238000,-1216.9345854,0.00039503,2]
[421615285,1777966238000,-219.2,0.000396,31]
[421615281,1777966238000,-883.17863453,0.00039527,2]
[421615282,1777966238000,-150.0,0.00039527,7]
[421615286,1777966238000,-219.199999,0.000396,31]
[421615287,1777966238000,-302.35673437,0.000396,107]
[421615278,1777966238000,-5776.56681722,0.00039503,2]
[421615277,1777966238000,-793.66649967,0.00039503,2]
[421615276,1777966238000,-13085.83308321,0.00039503,2]
[421615280,1777966238000,-2500.0,0.00039519,2]
[421615284,1777966238000,-219.199999,0.000396,31]
[421615317,1777966240000,-898.21267269,0.00039619,2]
[421615375,1777966243000,-500.0,0.00039718,30]
[421615389,1777966243000,-151.0,0.00039718,30]
[421615372,1777966243000,-220.6204711,0.00039718,30]
[421615371,1777966243000,-151.0,0.00039718,30]
[421615374,1777966243000,-151.0,0.00039718,30]
[421615379,1777966243000,-500.0,0.00039718,30]
[421615380,1777966243000,-151.0,0.00039718,30]
[421615390,1777966243000,-500.0,0.00039718,30]
[421615381,1777966243000,-489.80489431,0.00039718,30]
[421615384,1777966243000,-500.0,0.00039718,30]
[421615386,1777966243000,-151.0,0.00039718,30]
[421615382,1777966243000,-151.0,0.00039718,30]
[421615385,1777966243000,-1013.33108711,0.00039718,30]
[421615383,1777966243000,-151.0,0.00039718,30]
[421615387,1777966243000,-151.0,0.00039718,30]
[421615388,1777966243000,-500.0,0.00039718,30]
[421615393,1777966243000,-151.0,0.00039718,30]
[421615392,1777966243000,-500.0,0.00039718,30]
[421615394,1777966243000,-151.0,0.00039718,30]
[421615391,1777966243000,-151.0,0.00039718,30]
[421615373,1777966243000,-500.0,0.00039718,30]
[421615358,1777966243000,-500.0,0.00039673,5]
[421615378,1777966243000,-151.0,0.00039718,30]
[421615403,1777966243000,-260.287,0.00039718,30]
[421615351,1777966243000,-1009310.50209977,0.00039619,2]
[421615352,1777966243000,-4486.86921158,0.00039619,2]
[421615361,1777966243000,-151.0,0.00039716,14]
[421615362,1777966243000,-500.0,0.00039718,30]
[421615363,1777966243000,-160.5254781,0.00039718,30]
[421615353,1777966243000,-150.0,0.00039627,7]
[421615364,1777966243000,-879.00349269,0.00039718,30]
[421615354,1777966243000,-500.0,0.00039634,7]
[421615376,1777966243000,-151.0,0.00039718,30]
[421615356,1777966243000,-423.0,0.00039649,5]
[421615357,1777966243000,-172.26917593,0.00039673,5]
[421615359,1777966243000,-500.64361665,0.00039673,5]
[421615355,1777966243000,-540.0,0.00039649,5]
[421615370,1777966243000,-500.0,0.00039718,30]
[421615369,1777966243000,-456.65024318,0.00039718,30]
[421615368,1777966243000,-518.5,0.00039718,30]
[421615366,1777966243000,-500.0,0.00039718,30]
[421615365,1777966243000,-1030.0,0.00039718,30]
[421615377,1777966243000,-500.0,0.00039718,30]
[421615360,1777966243000,-883.17863445,0.0003969,2]
[421615401,1777966243000,-158.09655178,0.00039718,30]
[421615367,1777966243000,-151.0,0.00039718,30]
[421615395,1777966243000,-500.0,0.00039718,30]
[421615431,1777966243000,-154.33356306,0.00039718,30]
[421615433,1777966243000,-1151.79313784,0.00039719,2]
[421615432,1777966243000,-156.849,0.00039719,2]
[421615425,1777966243000,-1386.78395261,0.00039718,5]
[421615424,1777966243000,-217.15233878,0.00039718,30]
[421615428,1777966243000,-242.15909246,0.00039718,30]
[421615427,1777966243000,-233.51889341,0.00039718,30]
[421615426,1777966243000,-225.18697532,0.00039718,30]
[421615430,1777966243000,-260.4103811,0.00039718,30]
[421615423,1777966243000,-168.3888056,0.00039718,30]
[421615429,1777966243000,-251.11897888,0.00039718,30]
[421615434,1777966243000,-150.0,0.00039727,7]
[421615438,1777966243000,-310.0,0.00039808,66]
[421615436,1777966243000,-178.94,0.00039793,30]
[421615442,1777966243000,-200.13422043,0.00039819,120]
[421615443,1777966243000,-46981.91207877,0.0003982,2]
[421615440,1777966243000,-1610.8,0.0003981,120]
[421615441,1777966243000,-150.0,0.00039819,120]
[421615444,1777966243000,-1936.07282185,0.0003982,2]
[421615404,1777966243000,-209.39420802,0.00039718,30]
[421615435,1777966243000,-3990.5461687,0.00039746,2]
[421615420,1777966243000,-201.93286099,0.00039718,30]
[421615437,1777966243000,-226.29,0.00039795,30]
[421615421,1777966243000,-162.380719,0.00039718,30]
[421615405,1777966243000,-500.0,0.00039718,30]
[421615400,1777966243000,-251.0,0.00039718,30]
[421615396,1777966243000,-151.0,0.00039718,30]
[421615399,1777966243000,-151.0,0.00039718,30]
[421615397,1777966243000,-500.0,0.00039718,30]
[421615402,1777966243000,-500.0,0.00039718,30]
[421615398,1777966243000,-666.12485304,0.00039718,30]
[421615407,1777966243000,-279.92821434,0.00039718,30]
[421615415,1777966243000,-181.08010149,0.00039718,30]
[421615416,1777966243000,-187.78006525,0.00039718,30]
[421615417,1777966243000,-151.0,0.00039718,30]
[421615418,1777966243000,-194.72792766,0.00039718,30]
[421615406,1777966243000,-332.34850278,0.00039718,30]
[421615409,1777966243000,-417.9775445,0.00039718,30]
[421615411,1777966243000,-156.587,0.00039718,30]
[421615410,1777966243000,-151.0,0.00039718,30]
[421615412,1777966243000,-162.380719,0.00039718,30]
[421615408,1777966243000,-500.0,0.00039718,30]
[421615413,1777966243000,-168.3888056,0.00039718,30]
[421615414,1777966243000,-174.61919141,0.00039718,30]
[421615419,1777966243000,-156.587,0.00039718,30]
[421615422,1777966243000,-209.40437684,0.00039718,30]
[421615449,1777966246000,-15138.96431859,0.0003982,2]
[421615445,1777966246000,-928.0,0.00037857,2]
[421615446,1777966246000,-1880.19998,0.0003982,2]
[421615448,1777966246000,-93600.23205506,0.0003982,2]
[421615447,1777966246000,-2233.2002,0.0003982,2]
[421615451,1777966246000,-9430.35816085,0.0003982,2]
[421615452,1777966246000,-900.55235251,0.0003982,2]
[421615453,1777966246000,-72188.97584785,0.0003982,2]
[421615454,1777966246000,-2589.53252306,0.0003982,2]
[421615450,1777966246000,-14678.37508463,0.0003982,2]
[421615462,1777966267000,273839.39747889,0.000107,2]
[421615463,1777966274000,174.66926446,9.04e-05,2]
[421615464,1777966323000,2500.0,0.00023046,120]
[421615483,1777967198000,-184.01954554,0.000128,2]
[421615488,1777967232000,-250.0,0.0001312,2]
[421615489,1777967232000,-60.35477602,0.0001408,2]
[421615487,1777967232000,-81.96045446,0.000128,2]
[421615491,1777967251000,-138.9750963,0.0001408,2]
[421615490,1777967251000,-114.11742379,0.0001408,2]
[421615502,1777967345000,-177.0,0.00021,2]
[421615503,1777967345000,-177.0,0.00022,2]
[421615504,1777967345000,-1476.94,0.00022562,2]
[421615501,1777967345000,-265.0,0.00020951,2]
[421615499,1777967345000,-177.0,0.0002,2]
[421615497,1777967345000,-172.1,0.00017931,2]
[421615492,1777967345000,-262.8859303,0.0001408,2]
[421615498,1777967345000,-250.31297905,0.00019261,2]
[421615496,1777967345000,-250.0,0.00015488,2]
[421615495,1777967345000,-300.0,0.00015488,2]
[421615494,1777967345000,-250.0,0.00014784,2]
[421615493,1777967345000,-250.0,0.0001408,2]
[421615500,1777967345000,-1713.25,0.00020951,2]
[421615505,1777967345000,-177.0,0.00023,2]
[421615510,1777967345000,-1200.0,0.00024999,2]
[421615508,1777967345000,-160.89,0.00024658,2]
[421615518,1777967345000,-502.0,0.00027137,2]
[421615519,1777967345000,-1200.0,0.00027205,2]
[421615506,1777967345000,-162.0,0.00023046,3]
[421615516,1777967345000,-1000.0,0.00026783,2]
[421615512,1777967345000,-300.0,0.0002527,2]
[421615517,1777967345000,-251.93,0.00027117,2]
[421615520,1777967345000,-20767.47319065,0.00027442,2]
[421615514,1777967345000,-160.89,0.00026027,7]
[421615513,1777967345000,-5000.0,0.00025271,2]
[421615511,1777967345000,-177.0,0.00025,2]
[421615507,1777967345000,-177.0,0.00024,2]
[421615509,1777967345000,-154.22,0.00024658,2]
[421615515,1777967345000,-154.22,0.00026027,7]
[421615521,1777967347000,-5718.92429196,0.00027442,2]
[421615524,1777967351000,-4215.29241252,0.00027442,2]
[421615523,1777967351000,-152.88,0.00026027,7]
[421615522,1777967351000,-152.88,0.00024658,2]
[421615525,1777967353000,-24440.61345814,0.00027442,2]
[421615526,1777967368000,-63581.95283709,0.00027442,2]
[421615529,1777967402000,2500.0,0.00027581,120]
[421615528,1777967402000,2500.0,0.00027441,120]
[421615531,1777967402000,2441.21309588,0.00027581,120]
[421615530,1777967402000,2500.0,0.00027581,120]
[421615561,1777967432000,-162.0,0.00032783,3]
[421615563,1777967432000,-169.86,0.00032844,7]
[421615562,1777967432000,-169.86,0.00032844,2]
[421615565,1777967432000,-177.0,0.00033263,30]
[421615564,1777967432000,-169.88,0.00032844,30]
[421615567,1777967432000,-10302.0224976,0.000345,120]
[421615566,1777967432000,-177.0,0.00034263,30]
[421615569,1777967432000,-964.451,0.00034872,40]
[421615568,1777967432000,-1985.35,0.00034678,2]
[421615573,1777967432000,-500.0,0.00035704,30]
[421615570,1777967432000,-152.0,0.00035252,3]
[421615572,1777967432000,-215.45,0.00035434,2]
[421615574,1777967432000,-150.0,0.00035704,30]
[421615575,1777967432000,-150.0,0.00035704,7]
[421615577,1777967432000,-150.0,0.00035704,7]
[421615578,1777967432000,-150.0,0.00035704,7]
[421615576,1777967432000,-150.0,0.00035704,7]
[421615579,1777967432000,-150.0,0.00035704,7]
[421615581,1777967432000,-503.34044827,0.00035978,30]
[421615582,1777967432000,-177.0,0.00036263,30]
[421615571,1777967432000,-177.0,0.00035263,30]
[421615560,1777967432000,-198.99,0.0003274,7]
[421615549,1777967432000,-51623.92,0.00030354,2]
[421615557,1777967432000,-177.0,0.00032263,30]
[421615538,1777967432000,-198.99,0.00024658,2]
[421615539,1777967432000,-982.0,0.00027441,2]
[421615541,1777967432000,-12361.09080108,0.00027442,2]
[421615542,1777967432000,-555.0,0.00027541,2]
[421615544,1777967432000,-162.0,0.00027914,3]
[421615543,1777967432000,-1985.35,0.00027742,2]
[421615540,1777967432000,-300.0,0.00027441,2]
[421615546,1777967432000,-895.0,0.0003,2]
[421615550,1777967432000,-3063.8,0.00030354,5]
[421615559,1777967432000,-198.99,0.0003274,2]
[421615545,1777967432000,-150.0,0.00029534,2]
[421615547,1777967432000,-2500.0,0.00030185,120]
[421615551,1777967432000,-180.53076051,0.00031,2]
[421615548,1777967432000,-250.0,0.00030185,2]
[421615552,1777967432000,-150.0,0.00031011,2]
[421615554,1777967432000,-177.0,0.00031263,30]
[421615553,1777967432000,-1985.35,0.0003121,2]
[421615556,1777967432000,-173.72981298,0.000318,2]
[421615555,1777967432000,-346.72234768,0.00031479,2]
[421615558,1777967432000,-150.0,0.00032562,2]
[421615580,1777967432000,-172.1,0.00035861,2]
[421615585,1777967432000,-162.0,0.00037651,3]
[421615622,1777967432000,-13035.07583926,0.00039646,2]
[421615586,1777967432000,-150.0,0.00037688,7]
[421615611,1777967432000,-13035.07583926,0.00039572,2]
[421615610,1777967432000,-13035.07583932,0.00039553,2]
[421615614,1777967432000,-185.06959613,0.00039591,2]
[421615613,1777967432000,-13035.07583926,0.0003959,2]
[421615615,1777967432000,-219.199999,0.000396,31]
[421615618,1777967432000,-1088.60213716,0.00039601,2]
[421615620,1777967432000,-500.0,0.00039618,7]
[421615617,1777967432000,-219.199999,0.000396,31]
[421615619,1777967432000,-13035.07583926,0.00039609,2]
[421615609,1777967432000,-1088.60213716,0.00039541,2]
[421615621,1777967432000,-13035.07583926,0.00039627,2]
[421615625,1777967432000,-1536.6453084,0.00039653,2]
[421615624,1777967432000,-5050.30333,0.00039653,2]
[421615626,1777967432000,-12064.3908167,0.00039653,2]
[421615627,1777967432000,-648.5403471,0.00039653,2]
[421615629,1777967432000,-8544.5095037,0.00039653,2]
[421615631,1777967432000,-1088.60213716,0.0003966,2]
[421615628,1777967432000,-26101.0161704,0.00039653,2]
[421615630,1777967432000,-5648.0538896,0.00039653,2]
[421615584,1777967432000,-177.0,0.00037263,30]
[421615623,1777967432000,-14498.5949761,0.00039653,2]
[421615612,1777967432000,-5000.0,0.00039588,2]
[421615616,1777967432000,-219.2,0.000396,31]
[421615605,1777967432000,-390.23465,0.0003933,112]
[421615583,1777967432000,-152.0,0.00036925,7]
[421615588,1777967432000,-886.16,0.00038034,30]
[421615587,1777967432000,-150.0,0.0003792,2]
[421615589,1777967432000,-152.0,0.00038121,4]
[421615608,1777967432000,-1088.60213716,0.00039481,2]
[421615591,1777967432000,-215.45,0.00038977,2]
[421615593,1777967432000,-500.0,0.0003917,2]
[421615597,1777967432000,-163.83485364,0.0003917,2]
[421615592,1777967432000,-500.0,0.0003917,2]
[421615599,1777967432000,-1088.60213716,0.00039243,2]
[421615594,1777967432000,-500.0,0.0003917,2]
[421615590,1777967432000,-1985.35,0.00038146,2]
[421615598,1777967432000,-1088.6021372,0.00039183,2]
[421615595,1777967432000,-150.0,0.0003917,2]
[421615603,1777967432000,-390.23465,0.0003933,112]
[421615601,1777967432000,-1088.60213716,0.00039302,2]
[421615602,1777967432000,-390.23466,0.0003933,112]
[421615604,1777967432000,-390.23465,0.0003933,112]
[421615600,1777967432000,-517.0,0.00039283,30]
[421615606,1777967432000,-1088.60213716,0.00039362,2]
[421615607,1777967432000,-1088.60213716,0.00039422,2]
[421615596,1777967432000,-150.0,0.0003917,2]
[421615643,1777967433000,-594.58845336,0.0003969,15]
[421615640,1777967433000,-151.0,0.00039688,28]
[421615642,1777967433000,-412.43753219,0.0003969,15]
[421615641,1777967433000,-160.25235163,0.0003969,15]
[421615639,1777967433000,-344.0,0.00039686,5]
[421615633,1777967433000,-150.0,0.00039671,7]
[421615637,1777967433000,-185.68482215,0.00039681,2]
[421615635,1777967433000,-234.14524112,0.00039671,7]
[421615636,1777967433000,-315.54744385,0.00039673,5]
[421615634,1777967433000,-150.0,0.00039671,7]
[421615632,1777967433000,-13035.07583926,0.00039664,2]
[421615645,1777967433000,-500.0,0.0003969,15]
[421615638,1777967433000,-13035.07583926,0.00039683,2]
[421615644,1777967433000,-500.0,0.0003969,15]
[421615649,1777967433000,-1271.093591,0.00039691,30]
[421615648,1777967433000,-17776.87338626,0.00039691,47]
[421615646,1777967433000,-267.83384052,0.0003969,15]
[421615660,1777967433000,-21573.4445238,0.00039691,30]
[421615658,1777967433000,-264326.07100284,0.00039691,30]
[421615656,1777967433000,-228.019671,0.00039691,30]
[421615655,1777967433000,-228.019671,0.00039691,30]
[421615657,1777967433000,-200.0,0.00039691,30]
[421615659,1777967433000,-114399.51059512,0.00039691,30]
[421615652,1777967433000,-1271.093591,0.00039691,30]
[421615653,1777967433000,-228.019671,0.00039691,30]
[421615651,1777967433000,-228.019671,0.00039691,30]
[421615650,1777967433000,-1271.093591,0.00039691,30]
[421615647,1777967433000,-275.0,0.00039691,5]
[421615654,1777967433000,-1271.093591,0.00039691,30]
[421615669,1777967434000,-500.0,0.000396,15]
[421615670,1777967434000,-250.0,0.000396,15]
[421615668,1777967434000,-484.80171928,0.000396,15]
[421615666,1777967434000,-386.12221675,0.000396,15]
[421615663,1777967434000,-182.41,0.00032617,7]
[421615667,1777967434000,-500.0,0.000396,15]
[421615664,1777967434000,-500.0,0.000396,15]
[421615662,1777967434000,-182.41,0.00032617,2]
[421615661,1777967434000,-182.41,0.00024658,2]
[421615665,1777967434000,-500.0,0.000396,15]
[421615673,1777967434000,-157.47544321,0.000396,15]
[421615671,1777967434000,-63.90700479,0.000396,15]
[421615674,1777967434000,-500.0,0.000396,15]
[421615675,1777967434000,-500.0,0.000396,15]
[421615677,1777967434000,-20014.29437408,0.00039691,30]
[421615676,1777967434000,-500.0,0.000396,15]
[421615679,1777967434000,-283.0,0.00039691,30]
[421615678,1777967434000,-1400.28333154,0.00039691,30]
[421615680,1777967434000,-534.79588592,0.00039691,30]
[421615681,1777967434000,-1074.01209574,0.00039691,30]
[421615682,1777967434000,-1630.87669183,0.00039691,30]
[421615683,1777967434000,-622.24371639,0.00039691,30]
[421615684,1777967434000,-11246.17765113,0.00039691,30]
[421615672,1777967434000,-278.617552,0.000396,15]
[421615697,1777967438000,-2355.91407948,0.00039691,30]
[421615694,1777967438000,-182.41,0.00028751,7]
[421615696,1777967438000,-282.0,0.00039691,30]
[421615698,1777967438000,-323.65791137,0.00039691,30]
[421615695,1777967438000,-182.42,0.00032844,30]
[421615991,1777967440000,-11118.78747162,0.00039691,30]
[421615990,1777967440000,-271.0,0.00039691,30]
[421615907,1777967440000,-3853.8,0.00039691,30]
[421616065,1777967443000,-4672.71937765,0.00039691,30]
[421616063,1777967443000,-502.0,0.00027137,2]
[421616064,1777967443000,-224893.29812777,0.00039691,30]
[421616060,1777967443000,-271.96277641,0.00039691,30]
[421616062,1777967443000,-938.22552479,0.00039691,30]
[421616061,1777967443000,-540.03722359,0.00039691,30]
[421616067,1777967446000,-502.0,0.00034689,10]
[421616068,1777967446000,-135391.41177555,0.00039691,30]
[421616070,1777967446000,-413.36205394,0.00039691,30]
[421616071,1777967446000,-128257.83447132,0.00039691,30]
[421616069,1777967446000,-19799.83129792,0.00039691,30]
[421616084,1777967488000,3136.66,0.00030137,120]
[421616089,1777967523000,2500.0,0.00028062,120]
[421616088,1777967523000,2500.0,0.00028062,120]
[421616087,1777967523000,2500.0,0.00028062,120]
[421616086,1777967523000,2500.0,0.00028062,120]
[421616085,1777967523000,2500.0,0.00023046,120]
[421616109,1777968429000,-236.00579939,0.00020951,2]
[421616108,1777968429000,-213.06125945,0.00020475,2]
[421616107,1777968429000,-36.93874055,0.00020475,2]
[421616106,1777968429000,-368.0,0.0002,2]
[421616110,1777968440000,-1142.64420061,0.00020951,2]
[421616111,1777968440000,-30.72559765,0.00021,2]
[421616119,1777968551000,-250.0,0.00022,2]
[421616120,1777968551000,-699.68427286,0.00022562,2]
[421616118,1777968551000,-368.0,0.00022,2]
[421616117,1777968551000,-162.61798079,0.00021303,2]
[421616116,1777968551000,-337.27440235,0.00021,2]
[421616114,1777968551000,-167.02,0.00016763,2]
[421616115,1777968551000,-167.02,0.00020954,2]
[421616122,1777968553000,-368.0,0.00023,2]
[421616121,1777968553000,-488.80572714,0.00022562,2]
[421616123,1777968553000,-368.0,0.00024,2]
[421616124,1777968553000,-2371.2367335,0.00024712,2]
[421616126,1777968553000,-372.0,0.00025,2]
[421616128,1777968553000,-510.0,0.00027137,2]
[421616129,1777968553000,-33.10263922,0.00027341,2]
[421616127,1777968553000,-167.02,0.00025145,2]
[421616125,1777968553000,-178.65,0.00024913,2]
[421616152,1777968569000,-164.57,0.00031857,2]
[421616151,1777968569000,-223.06,0.00031622,30]
[421616150,1777968569000,-368.0,0.00031266,30]
[421616148,1777968569000,-190.76,0.0003077,2]
[421616147,1777968569000,-219.39008993,0.00030382,2]
[421616146,1777968569000,-222.0,0.00029606,2]
[421616144,1777968569000,-167.02,0.00029335,2]
[421616145,1777968569000,-150.0,0.00029534,2]
[421616142,1777968569000,-9999.99,0.00027397,2]
[421616143,1777968569000,-8079.26,0.00027397,2]
[421616138,1777968569000,-999.99,0.00027397,2]
[421616140,1777968569000,-6299.15,0.00027397,2]
[421616139,1777968569000,-25479.34,0.00027397,2]
[421616137,1777968569000,-9999.99,0.00027397,2]
[421616136,1777968569000,-300.0,0.00027396,2]
[421616135,1777968569000,-150.0,0.00027396,2]
[421616133,1777968569000,-211.26772661,0.00027381,2]
[421616134,1777968569000,-300.0,0.00027396,2]
[421616132,1777968569000,-151.0,0.00027381,2]
[421616131,1777968569000,-1214.0616,0.00027342,2]
[421616130,1777968569000,-433.64876078,0.00027341,2]
[421616141,1777968569000,-2821.71,0.00027397,2]
[421616154,1777968569000,-164.64,0.00032045,2]
[421616149,1777968569000,-150.0,0.00031011,2]
[421616155,1777968569000,-1119.0,0.000321,5]
[421616153,1777968569000,-716.11691901,0.00032029,2]
[421616176,1777968569000,-185.19109655,0.00034878,40]
[421616177,1777968569000,-595.0,0.00035,2]
[421616174,1777968569000,-368.0,0.00034266,30]
[421616175,1777968569000,-1001.64,0.00034878,40]
[421616173,1777968569000,-150.0,0.0003419,2]
[421616169,1777968569000,-1000.0,0.00033694,2]
[421616171,1777968569000,-2197.12278074,0.00033852,2]
[421616172,1777968569000,-200.0,0.0003391,2]
[421616170,1777968569000,-6285.86,0.0003371,2]
[421616166,1777968569000,-5000.0,0.00033574,60]
[421616168,1777968569000,-1960.22,0.00033693,60]
[421616165,1777968569000,-167.02,0.00033526,2]
[421616163,1777968569000,-368.0,0.00033266,30]
[421616162,1777968569000,-5000.0,0.00033265,60]
[421616164,1777968569000,-5000.0,0.00033525,60]
[421616161,1777968569000,-3536.51570119,0.00033078,2]
[421616159,1777968569000,-151.0,0.00032617,2]
[421616160,1777968569000,-5000.0,0.00033077,60]
[421616157,1777968569000,-510.0,0.00032423,7]
[421616158,1777968569000,-150.0,0.00032562,2]
[421616156,1777968569000,-368.0,0.00032266,30]
[421616167,1777968569000,-1146.17,0.00033575,2]
[421616178,1777968570000,-5000.0,0.00035136,2]
[421616179,1777968570000,-371.0,0.00035259,30]
[421616180,1777968570000,-232.0,0.00035259,30]
[421616184,1777968570000,-1466.32855989,0.00035629,2]
[421616182,1777968570000,-368.0,0.00035266,30]
[421616183,1777968570000,-172.51,0.00035355,2]
[421616181,1777968570000,-409.0,0.00035259,30]
[421616209,1777968632000,-150.0,0.00035827,7]
[421616208,1777968632000,-150.72884545,0.00035827,7]
[421616210,1777968632000,-150.0,0.00035827,7]
[421616211,1777968632000,-150.0,0.00035827,7]
[421616214,1777968632000,-500.0,0.00035924,7]
[421616213,1777968632000,-500.0,0.00035924,7]
[421616219,1777968632000,-150.0,0.0003644,7]
[421616216,1777968632000,-509.0,0.00036164,2]
[421616217,1777968632000,-339.95478502,0.00036164,2]
[421616218,1777968632000,-368.0,0.00036266,30]
[421616212,1777968632000,-500.0,0.00035924,7]
[421616205,1777968632000,-150.0,0.00035827,7]
[421616220,1777968632000,-1623.1958428,0.0003669,5]
[421616222,1777968632000,-150.0,0.00036746,7]
[421616215,1777968632000,-150.0,0.00036134,7]
[421616207,1777968632000,-261.68366572,0.00035827,7]
[421616195,1777968632000,-164.53,0.00031857,2]
[421616203,1777968632000,-150.20530018,0.00035827,7]
[421616190,1777968632000,-162.51838138,0.00027,3]
[421616194,1777968632000,-250.81207865,0.000318,2]
[421616192,1777968632000,-250.81207866,0.000318,2]
[421616191,1777968632000,-162.51838138,0.00027342,2]
[421616196,1777968632000,-292.63174998,0.00035629,2]
[421616193,1777968632000,-250.81207865,0.000318,2]
[421616206,1777968632000,-150.0,0.00035827,7]
[421616189,1777968632000,-246.8,0.00024658,2]
[421616224,1777968632000,-242.07,0.00037055,30]
[421616199,1777968632000,-1499.87,0.00035681,2]
[421616200,1777968632000,-150.0,0.00035827,30]
[421616204,1777968632000,-247.56730628,0.00035827,7]
[421616202,1777968632000,-150.0,0.00035827,7]
[421616201,1777968632000,-150.0,0.00035827,7]
[421616197,1777968632000,-618.31401655,0.00035629,2]
[421616232,1777968632000,-190.53878735,0.000372,120]
[421616198,1777968632000,-622.45567358,0.00035629,2]
[421616223,1777968632000,-150.0,0.00037052,7]
[421616264,1777968632000,-713.09,0.00038034,30]
[421616273,1777968632000,-387.29507479,0.00038329,120]
[421616266,1777968632000,-350.0,0.00038072,4]
[421616276,1777968632000,-150.0,0.00038481,30]
[421616274,1777968632000,-9589.84089844,0.00038445,2]
[421616277,1777968632000,-150.0,0.00038481,7]
[421616268,1777968632000,-9589.84089844,0.00038203,2]
[421616269,1777968632000,-340.26,0.00038247,120]
[421616271,1777968632000,-150.0,0.00038277,7]
[421616279,1777968632000,-150.0,0.00038481,7]
[421616281,1777968632000,-150.0,0.00038583,7]
[421616283,1777968632000,-9589.84089844,0.00038688,2]
[421616282,1777968632000,-150.0,0.00038614,2]
[421616280,1777968632000,-307.0,0.0003851,30]
[421616221,1777968632000,-10380.0841572,0.0003669,5]
[421616261,1777968632000,-172.0,0.00038,120]
[421616259,1777968632000,-150.0,0.00037971,7]
[421616278,1777968632000,-150.0,0.00038481,7]
[421616258,1777968632000,-9589.84089844,0.0003796,2]
[421616254,1777968632000,-150.0,0.00037818,7]
[421616225,1777968632000,-340.26,0.00037096,120]
[421616226,1777968632000,-150.0,0.00037154,30]
[421616230,1777968632000,-150.0,0.00037154,7]
[421616228,1777968632000,-150.0,0.00037154,7]
[421616234,1777968632000,-19375.69,0.00037233,2]